Cogmind - Beta 15 @@@ ROGUE MODE // 2025.05.17 @ 12:44:40 Player: Cess183 Result: Destroyed by G-47 Trooper with Particle Gun Performance ------------- Evolutions (2) 1000 Regions Visited (4) 800 Robots Destroyed (34) 170 Value Destroyed (626) 626 Prototype IDs (0) 0 Alien Tech Used (0) 0 Bonus (-30) -30 TOTAL SCORE: 2566 Bonus ------- Follower Combat Kills 123 Friendly Fire -153 Cogmind --------- Core Integrity 0/550 Matter 208/300 Energy 64/100 System Corruption 1% Temperature Cool (9) Movement Core (800) Ox15 Location -8/Materials Parts ------- > --- POWER (2) -------- (None) > --- PROPULSION (3) --- (None) > --- UTILITY (4) ------ High-capacity Storage Unit Improved Targeting Computer > --- WEAPON (2) ------- Shock Bomb Launcher > --- INVENTORY (20) --- Structural Scanner Recoil Stabilizer Peak State ------------ > --- POWER ------------ Ion Engine Light Ion Engine > --- PROPULSION ------- Aluminum Leg Aluminum Leg Carbon-fiber Leg > --- UTILITY ---------- High-capacity Storage Unit Improved Terrain Scanner Seismic Detector Hardlight Generator > --- WEAPON ----------- Pulse Rifle Grenade Launcher > --- INVENTORY -------- Aluminum Leg Structural Scanner Improved Targeting Computer Recoil Stabilizer Hardlight Generator Light Assault Rifle Shock Bomb Launcher [Rating: 20] Favorites ----------- Power Ion Engine Engine Ion Engine Propulsion Aluminum Leg Leg Aluminum Leg Utility Seismic Detector Device Seismic Detector Storage High-capacity Storage Unit Processor Improved Targeting Computer Weapon Grenade Launcher Energy Gun Pulse Rifle Ballistic Gun Light Assault Rifle Launcher Grenade Launcher Build | -11 -10 -10 -9 -8 ------- Run | Yrd Mat Min Mat Mat Slots Evolved 4 | . . . 2 2 Power 1 | . . . . 1 Propulsion 1 | . . . 1 . Utility 2 | . . . 1 1 Weapon . | . . . . . Parts Attached 31 | 8 1 6 5 11 Power 7 | 1 . 2 . 4 Engine 7 | 1 . 2 . 4 Core . | . . . . . Reactor . | . . . . . Propulsion 5 | 2 . 1 1 1 Treads . | . . . . . Leg 5 | 2 . 1 1 1 Wheel . | . . . . . Hover . | . . . . . Flight . | . . . . . Utility 10 | 3 . 1 3 3 Device 5 | 2 . . 1 2 Storage 4 | 1 . 1 2 . Processor 1 | . . . . 1 Hackware . | . . . . . Protection . | . . . . . Artifact . | . . . . . Weapon 9 | 2 1 2 1 3 Energy Gun 3 | 2 . 1 . . Energy Cannon . | . . . . . Ballistic Gun 2 | . . . . 2 Ballistic Cannon . | . . . . . Launcher 4 | . 1 1 1 1 Special Weapon . | . . . . . Impact Weapon . | . . . . . Slashing Weapon . | . . . . . Piercing Weapon . | . . . . . Special Melee Weapon . | . . . . . Unidentified Prototypes . | . . . . . Parts Lost 21 | . . . 4 17 Power 6 | . . . 1 5 Propulsion 5 | . . . 1 4 Utility 5 | . . . 1 4 Weapon 5 | . . . 1 4 Highest Loss Streak 10 | . . . 4 10 To Critical Strikes . | . . . . . Average Backups 8 | 3 5 9 10 7 Power 1 | . 1 1 1 . Propulsion . | . . 1 1 . Utility 3 | 2 2 3 4 3 Weapon 2 | . 1 2 3 2 Tool/Special . | . . . . . Unused Backups 4 | . . 2 . 2 Power . | . . . . . Propulsion . | . . . . . Utility 4 | . . 2 . 2 Weapon . | . . . . . Tool/Special . | . . . . . Average Slot Usage (%) 96 | . 100 99 97 76 Engine 12 | . 14 14 10 11 Leg 28 | . 28 28 32 19 Device 13 | . 14 14 12 19 Storage 16 | . 14 14 20 9 Energy Gun 11 | . 15 13 11 3 Launcher 10 | . 12 14 9 4 Peak Build Rating 20 | 9 7 12 18 20 Average Rating 12 | 4 7 10 16 15 On Entrance 8 | . 7 7 12 15 Naked Turns . | . . . . . Heaviest Build 61 | 12 14 25 54 61 Greatest Support 35 | 20 20 25 35 35 Greatest Overweight (x) 14 | . . 1 1 14 Average Overweight (x) . | . . . . 1 Largest Inventory Capacity 20 | 8 8 10 20 20 Average Capacity 14 | 5 8 9 19 20 Most Carried 13 | 5 6 10 13 9 Average Carried 8 | 3 5 9 10 7 Final Capacity 20 | 8 8 10 20 20 Final Carried 10 | 3 6 10 10 2 Class Distribution -------------------- 95% | Mutant 4% | Scavenger-Mutant Dominant Class ---------------- Mutant | -10/Materials Mutant | -10/Mines Mutant | -9/Materials Scavenger-Mutant | -8/Materials Resources | -11 -10 -10 -9 -8 ----------- Run | Yrd Mat Min Mat Mat Matter Collected 895 | 241 22 367 86 179 Remotely . | . . . . . Salvage Created 789 | 27 29 139 351 243 Parts 70 | 3 2 8 34 23 Haulers Intercepted 2 | . . . 1 1 Recyclers Shooed 3 | 1 . 1 1 . Parts Field Recycled . | . . . . . Retrieved Matter . | . . . . . Parts Self-Destructed . | . . . . . Prevented . | . . . . . Kills | -11 -10 -10 -9 -8 ------- Run | Yrd Mat Min Mat Mat Combat Hostiles Destroyed 13 | . . 2 8 3 Guns 4 | . . 1 . 3 AOE 9 | . . 1 8 . Classes Destroyed 10 | 1 1 2 5 1 Worker 4 | . 1 . 2 1 Builder 5 | . . . 2 3 Tunneler 3 | 1 . . 1 1 Hauler 2 | . . . 1 1 Recycler 2 | . . 1 1 . Operator 1 | . . . 1 . Watcher 3 | . . . 2 1 Swarmer 2 | . . . 2 . Grunt 10 | . . 2 6 2 Sentry 1 | . . . . 1 Thug 1 | . . . 1 . Best Kill Streak 10 | 1 1 3 10 4 Combat Bots Only 5 | . . 2 5 1 Max Kills in Single Turn 3 | 1 1 2 3 3 Gunslinging . | . . . . . Exploded 2 | . . 1 2 . Melee . | . . . . . Uniques/NPCs Destroyed . | . . . . . Combat | -11 -10 -10 -9 -8 -------- Run | Yrd Mat Min Mat Mat Hostile Shots Fired 189 | . . 1 23 165 Missed 43 | . . . 6 37 Hits 146 | . . 1 17 128 Projectile 146 | . . 1 17 128 Critical Strikes 4 | . . . . 4 Damage Taken 2305 | . . 12 550 1743 Core 652 | . . 12 76 564 Absorbed by Shields 184 | . . . . 184 Core Remaining (%) 92 | 100 . 95 81 . Volleys Fired 83 | 5 2 6 26 44 Largest 2 | 1 2 2 2 2 Hottest 96 | 40 80 80 96 93 Shots Fired 123 | 5 3 8 37 70 Gun 93 | 5 2 5 23 58 Cannon . | . . . . . Launcher 30 | . 1 3 14 12 Special . | . . . . . Kinetic 47 | . . . . 47 Thermal 46 | 5 2 5 23 11 Explosive 28 | . 1 3 14 10 Electromagnetic 2 | . . . . 2 Robot Hit Streak 12 | 4 1 2 6 12 Robot Miss Streak 8 | 1 1 1 8 4 Penetration Max . | . . . . . Secondary Targets . | . . . . . Shots Hit Robots 76 | 4 1 3 16 52 Core Hits 66 | 2 1 5 33 25 Critical Kills . | . . . . . Critical Parts Destroyed . | . . . . . Critical Strikes 2 | . . 1 . 1 Burn 1 | . . 1 . . Destroy 1 | . . . . 1 Melee Attacks . | . . . . . Impact . | . . . . . Slashing . | . . . . . Piercing . | . . . . . Sneak Attacks . | . . . . . Combat Hostiles . | . . . . . Follow-up Attacks . | . . . . . Damage Inflicted 2547 | 40 34 119 1411 943 Guns 701 | 40 12 36 190 423 Cannons . | . . . . . Explosions 1835 | . 22 83 1210 520 Melee . | . . . . . Ramming 11 | . . . 11 . Kinetic 291 | . . . . 291 Thermal 410 | 40 12 36 190 132 Explosive 1778 | . 22 83 1210 463 Electromagnetic 57 | . . . . 57 Impact . | . . . . . Slashing . | . . . . . Piercing . | . . . . . Highest Corruption 9 | . . . 9 1 Average Corruption 8 | . . . 9 1 Corruption Purged . | . . . . . Corruption Blocked . | . . . . . Effects 3 | . . . 3 . Message Errors 1 | . . . 1 . Energy Discharges 1 | . . . 1 . Data Loss (minor) 1 | . . . 1 . Overload Shots . | . . . . . Overflow Damage 11 | . 1 . 10 . Projectiles . | . . . . . Explosions 11 | . 1 . 10 . Melee . | . . . . . Knockbacks . | . . . . . Impact . | . . . . . Kinetic . | . . . . . Secondary . | . . . . . Self-Inflicted Damage 213 | . . . 155 58 Shots 7 | . . . 5 2 Rammed . | . . . . . Targets Rammed 1 | . . . 1 . Kicked 1 | . . . 1 . Crushed . | . . . . . Highest Temperature 284 | . 28 42 284 282 Average Temperature 87 | . 16 20 103 91 Received Heat Transfer 877 | . . 6 111 760 Effects 3 | . . . . 3 Interference 3 | . . . . 3 Siege Activations . | . . . . . Martial Activations . | . . . . . Shielding Activations . | . . . . . Robots Disrupted . | . . . . . Combat Hostiles . | . . . . . Robots Corrupted . | . . . . . Combat Hostiles . | . . . . . Parts Fried . | . . . . . Impact Corruptions . | . . . . . Robots Melted . | . . . . . Combat Hostiles . | . . . . . Parts Melted 3 | . . 1 2 . Heat Transferred 1025 | 100 37 185 407 296 Parts Sabotaged . | . . . . . Parts Stolen . | . . . . . Parts Stripped . | . . . . . Power Chain Reactions . | . . . . . Alert | -11 -10 -10 -9 -8 ------- Run | Yrd Mat Min Mat Mat Maximum Alert Level 1 | . . . 1 . Low Security (%) 96 | 100 100 100 90 100 Level 1 3 | . . . 9 . Level 2 . | . . . . . Level 3 . | . . . . . Level 4 . | . . . . . Level 5 . | . . . . . High Security . | . . . . . Max Security . | . . . . . Peak Influence 257 | 5 13 74 257 88 Initial 80 | . . . . 80 Average 28 | . 1 6 51 47 Influence Increases 761 | 5 13 89 494 160 Destroy 0b10 Robot/C 360 | . . 40 260 60 Destroy 0b10 Robot/NC 100 | 5 5 5 50 35 Destroy Leader 80 | . . 10 56 14 Allied During Kill 21 | . . . 21 . Successful Hack 10 | . . . 10 . Disable Machine 45 | . . 15 15 15 Destroy Structure 145 | . 8 19 82 36 Influence Decreases 761 | 5 13 89 303 351 Entered New Map 111 | . . . . 111 Time Decay 454 | 5 13 89 217 130 Lost Part 150 | . . . 40 110 Lost Ally 46 | . . . 46 . Squads Dispatched 6 | . 1 1 3 1 Investigation 2 | . . 1 1 . Extermination . | . . . . . Reinforcement 4 | . 1 . 2 1 Assault . | . . . . . Garrison . | . . . . . Intercept . | . . . . . Searches Triggered . | . . . . . Construction Impeded 1 | . . . . 1 Haulers Reinforced . | . . . . . Active Scanning Responses . | . . . . . Cargo Convoy Interrupts . | . . . . . Stealth | -11 -10 -10 -9 -8 --------- Run | Yrd Mat Min Mat Mat Distress Signals 5 | . . . 3 2 Communications Jammed . | . . . . . Distress Signals . | . . . . . Times Spotted 34 | . 1 2 22 9 Peak Tracking Total 5 | . 1 2 5 4 Tactical Retreats . | . . . . . Traps | -11 -10 -10 -9 -8 ------- Run | Yrd Mat Min Mat Mat Traps Triggered . | . . . . . Indirectly . | . . . . . Trap Hack Attempts . | . . . . . Triggered . | . . . . . Disarmed . | . . . . . Reprogrammed . | . . . . . Reused . | . . . . . Traps Extracted . | . . . . . Installed . | . . . . . Triggered . | . . . . . Machines | -11 -10 -10 -9 -8 ---------- Run | Yrd Mat Min Mat Mat Machines Disabled 3 | . . 1 1 1 Max in Single Turn 1 | . . 1 1 1 Machines Repaired . | . . . . . Machines Dismantled . | . . . . . Machines Sabotaged . | . . . . . Overloaded Fab Kills . | . . . . . Hacking | -11 -10 -10 -9 -8 --------- Run | Yrd Mat Min Mat Mat Machines Accessed 5 | . . 1 4 . Terminals 3 | . . . 3 . Fabricators . | . . . . . Repair Stations . | . . . . . Recycling Units . | . . . . . Scanalyzers 1 | . . . 1 . Garrison Access . | . . . . . Total Hacks 11 | . . 1 10 . Successful 10 | . . 1 9 . Failed 1 | . . . 1 . Catastrophic . | . . . . . Database Lockouts . | . . . . . Manual 1 | . . . 1 . Terminals 5 | . . . 5 . Fabricators . | . . . . . Repair Stations . | . . . . . Recycling Units . | . . . . . Scanalyzers 5 | . . . 5 . Garrison Access . | . . . . . Terminal Hacks 6 | . . 1 5 . Record 4 | . . . 4 . Open Door 1 | . . 1 . . Alert Level 1 | . . . 1 . Fabricator Hacks . | . . . . . Repair Station Hacks . | . . . . . Recycling Unit Hacks . | . . . . . Scanalyzer 4 | . . . 4 . Insert Component 2 | . . . 2 . Analyze 2 | . . . 2 . Garrison Access Hacks . | . . . . . Unauthorized Hacks . | . . . . . Terminals . | . . . . . Fabricators . | . . . . . Repair Stations . | . . . . . Recycling Units . | . . . . . Scanalyzers . | . . . . . Garrison Access . | . . . . . Data Cores Recovered 1 | . . . 1 . Used 1 | . . . 1 . Hacking Detections 3 | . . . 3 . Full Trace Events 1 | . . . 1 . Feedback Events . | . . . . . Feedback Blocked . | . . . . . Robot Schematics Acquired . | . . . . . Robots Built . | . . . . . Authchips . | . . . . . Time . | . . . . . Total Robot Build Rating . | . . . . . Part Schematics Acquired 2 | . . . 2 . Parts Built . | . . . . . Authchips . | . . . . . Time . | . . . . . Total Part Build Rating . | . . . . . Parts Repaired . | . . . . . Time . | . . . . . Parts Recycled . | . . . . . Recycled Matter . | . . . . . Retrieved Matter . | . . . . . Retrieved Components . | . . . . . Parts Scanalyzed 2 | . . . 2 . Part Schematics Acquired 2 | . . . 2 . Parts Damaged . | . . . . . Bothacking | -11 -10 -10 -9 -8 ------------ Run | Yrd Mat Min Mat Mat Used RIF Installer . | . . . . . Robots Hacked . | . . . . . Non-combat . | . . . . . Combat . | . . . . . Robot Hacks Applied . | . . . . . Relay Couplers Released . | . . . . . Fabnet Peak Effective % . | . . . . . Robots Rewired . | . . . . . Allies Hacked . | . . . . . Hacks Repelled . | . . . . . Allies | -11 -10 -10 -9 -8 -------- Run | Yrd Mat Min Mat Mat Total Allies 3 | . . 3 . . Largest Group 3 | . . 3 3 . Highest-Rated Group 40 | . . 40 40 . Highest-Rated Ally 16 | . . 16 16 . Total Orders 2 | . . 2 . . AID 2 | . . 2 . . Ally Attacks 47 | . . . 47 . Total Damage 472 | . . . 472 . Kills 5 | . . . 5 . Allies Corrupted . | . . . . . Allies Melted . | . . . . . Intel | -11 -10 -10 -9 -8 ------- Run | Yrd Mat Min Mat Mat Active Infowar (turns) 2474 | 24 220 903 1035 292 Terrain 312 | 22 . . . 290 Seismic 2303 | 2 220 903 1035 143 Robot Analysis Total . | . . . . . Derelict Logs Recovered 2 | . . 2 . . Drone Launches . | . . . . . Drone Recoveries . | . . . . . Exploration | -11 -10 -10 -9 -8 ------------- Run | Yrd Mat Min Mat Mat Turns Passed 2612 | 144 220 903 1035 310 Spaces Moved 1443 | 109 140 614 507 73 Core 20 | 19 . . . 1 Treads . | . . . . . Legs 1423 | 90 140 614 507 72 Wheels . | . . . . . Hover . | . . . . . Flight . | . . . . . Fastest Speed 50 | 50 120 120 120 190 Average Speed 152 | 107 120 131 186 229 Slowest Speed 750 | 120 120 190 190 750 Overloaded Moves . | . . . . . Propulsion Burnouts . | . . . . . Robots Hopped . | . . . . . Potential Cave-ins . | . . . . . Cave-ins Triggered 1 | . . . 1 . Exploration Rate (%) 24 | 6 24 55 33 6 Regions Visited 4 Branch Regions 1 Pre-discovered Areas . | . . . . . Known Exits Taken 1 | . . . 1 . Unknown Exits Taken 3 | 1 1 1 . . Scrap Searched 1 | . . 1 . . Spaces Dug . | . . . . . Terrain Destroyed 166 | . 7 19 81 59 Melee . | . . . . . Projectile . | . . . . . AOE 166 | . 7 19 81 59 Terrain Rammed . | . . . . . Walls Destroyed . | . . . . . Machines Disabled . | . . . . . Actions | -11 -10 -10 -9 -8 --------- Run | Yrd Mat Min Mat Mat Total 1737 | 129 189 702 560 157 Wait 134 | . 43 67 11 13 Move 1439 | 108 139 613 506 73 Hop . | . . . . . Pick Up 23 | 7 3 5 6 2 Fast Attach 7 | 3 . 1 . 3 Attach 27 | 5 1 . 6 15 Detach 9 | 1 1 . 1 6 Swap 6 | . . 5 1 . Drop 8 | . . 5 2 1 Fire 83 | 5 2 6 26 44 Melee . | . . . . . Ram . | . . . . . Kick 1 | . . . 1 . Crush . | . . . . . Escape Stasis . | . . . . . Rewire . | . . . . . Trap . | . . . . . Miscellaneous . | . . . . . Route ------- -11/Scrapyard -10/Materials -10/Mines -9/Materials (discovered 2 exits: *Mat x2) -8/Materials History --------- Turn | Location | Event 18 | -11/Scrapyard | Discovered new exit (range 15) 145 | -11/Scrapyard | Entered Materials 314 | -10/Materials | Build established: Mutant 330 | -10/Materials | Discovered new exit (range 7) 365 | -10/Materials | Entered Mines 469 | -10/Mines | Discovered new exit (range 9) 616 | -10/Mines | Learned 4 Materials zone layouts 642 | -10/Mines | Met a Derelict shopkeep closing up shop 691 | -10/Mines | YI-UF0 nonchalantly dropped a Grenade Launcher on the ground 1221 | -10/Mines | Assisted by bots powering up and referring to "LRC-V3" 1268 | -10/Mines | Entered Materials 1268 | -9/Materials | Accompanied by 3 allies 1268 | -9/Materials | Evolved 2 slots: Propulsion x1, Utility x1 1269 | -9/Materials | Identified exit to Materials 2186 | -9/Materials | Crushed by falling debris 2186 | -9/Materials | Lost 3 allies 2217 | -9/Materials | Lost 4 parts (1p1n1u1w) 2268 | -9/Materials | Discovered exit to Materials (range 16) 2303 | -9/Materials | Entered another Materials area 2303 | -8/Materials | Evolved 2 slots: Power x1, Utility x1 2500 | -8/Materials | Lost 6 parts (2p2n2u) 2588 | -8/Materials | Core integrity fell below 50% 2606 | -8/Materials | Core integrity fell below 20% 2613 | -8/Materials | Destroyed by G-47 Trooper with Particle Gun Last Messages --------------- 02586_ U-05 Engineer builds a Wall. 02587_ Lgt. Assault Rifle destroyed. 02590_ Slug penetrates Wall. 02590_ U-05 Engineer lays Concrete. 02593_ Slug penetrates Wall. 02593_ U-05 Engineer lays Concrete. 02595_ Imp. Terrain Scanner destroyed. 02595_ U-05 Engineer lays Concrete. 02597_ Penetrated by Slug. 02597_ Lgt. Assault Rifle destroyed. 02597_ U-05 Engineer lays Concrete. 02598_ The unstable cave ceiling collapses. 02599_ U-05 Engineer builds a Wall. 02600_ Penetrated by Slug. 02603_ U-05 Engineer builds a Wall. 02606_ Penetrated by Slug. 02606_ Door malfunctions. 02607_ U-05 Engineer builds a Wall. 02609_ Lgt. Ion Engine destroyed. 02611_ U-05 Engineer lays Concrete. Map ----- +----------------------------------------------------+ | ?????????????????????????????????# ##??????????? | | ?????????????????????????????????# #???????????? | | ?????????????????????????????????# #???????????? | | ?????????????????????????????????# #???????????? | | ??????????????????????# ????????## ##????#?????? | | ?????????????????????## ###+### #???#?????? | | ????????????????????? #??????????? | | ?????????????????????? T ??????????? | | ?????????????????????? ? #?????????? | | ?????????????????????? ???#### #??????????? | | ?????????????????????? ?????## ##?? ???#??? | | ?????????????????????? #?##? ???????????? | | ?????????????????????## #?#??? ?????????? ? | | ????????????????? ???? #???#? ??# ????????? | | ?????????????? ?? ??? #????#? ? # ""???? ?? | | ?????????????? ?????? !! ##?#???# =#### ?????? ?? | | ????????????????????###h #????### ##???"???????? | | ???????????????#???## %! #??????# ##?? ???????#? | | ????????????????????# # ]#########+##???????????? | | ????????????????????# #u a# % ##??? ? ?????? | | ????????????????#???? #!/%# ##????? ??#??? | | ?????????????????????? ]]# != * #######??????? | | ??????????????????????# !# ! + ? | | ????????????"???#?????# / |! ###### ??? | | ?????????????????#????# gg# = #?????#??????? | | ??????????????????????# @# " "" ###?????? ???? | | ??????????#?????##???## # #?##??? ?? ??? | | ?????????????#????#???###############???? ? ????? | | ?????????????#?????#????????##??????????#????????? | | ???????????????????#??#?#???#??###??????#????????? | | ??????????????????????###???##?##?#?#?###????????? | | ????????????????#??????????????#?##?#??##?? ?????? | | ??????????????????#??##????##?????####??? ???????? | | ???????????????????????###??#????????????????????? | | ??????????????????????#???##??????###????????????? | | ???????????????????????##??#?????????????????????? | | ????????????????????????????????????#????????????? | | ???????????????????????????????#?????????????????? | | | | | | | | | | | | | | | | | | | | | | | | | +----------------------------------------------------+ Best States ------------- Heat Dissipation 31 Energy Generation 19 Energy Capacity 275 Matter Stores 450 Matter Capacity 450 Sight Range 16 Terrain Scan Range 16 Terrain Scan Density 10 Evasion (%) 55 Targeting Accuracy 6 Item Schematics ----------------- Shock Bomb Launcher | -9/Materials | Scanalyzed Imp. Targeting Computer | -9/Materials | Scanalyzed Robot Schematics ------------------ None Fabricated ------------ Nothing Repaired ---------- Nothing Alien Tech Used ----------------- None Achievements -------------- Backstab Dynamic Key Unlikely Earthworm Challenges ------------ None Game ------ Seed StructuralThiefSword Manual? 0 Play Time 00:39:34 Cumulative 7.8 hours Start 2025.05.17 @ 12:05:49 End 2025.05.17 @ 12:44:40 Sessions 1 Manual Loads 0 Difficulty Rogue Special Mode None Game No. 10 Rogue 10 Adventurer 0 Explorer 0 Win Type - Total 0 Types 0/0/0/0/0/0/0/0/0/0 Lore% 5 Gallery% 9 Achievement% 8 Wizard Run 0 Options --------- Layout 1 ASCII 0 Keyboard 1 Movement Vi Keybinds 0 Fullscreen 1 Font 24/Smallcaps Map View 50x35 Zoom Use 0% Tactical HUD 1 Map Filters NONE Filters NONE Steam 1 RUN: b2feca77-1cc6-4964-b073-8c5d4999e18c